bitfinex/quotes_BTCUSD_20251120
["timestamp","ask_amount","ask_price","bid_price","bid_amount"]
[1763648654751,0.23401377,91356.0,91355.0,0.00012577]
[1763648654969,0.55701377,91356.0,91355.0,0.00012577]
[1763648655180,0.58008377,91356.0,91355.0,0.00012577]
[1763648656507,0.33809,91356.0,91355.0,0.00012577]
[1763648656939,0.323,91356.0,91355.0,0.00012577]
[1763648657155,0.3268,91356.0,91355.0,0.00012577]
[1763648657394,0.01094439,91371.0,91355.0,0.00012577]
[1763648657609,0.02307,91378.0,91355.0,0.00012577]
[1763648657610,0.01094511,91365.0,91355.0,0.00012577]
[1763648657816,0.323,91360.0,91355.0,0.00012577]
[1763648658053,0.00999999,91400.0,91359.0,0.21891658]
[1763648658262,0.32815427,91421.0,91386.0,0.01094259]
[1763648658263,0.00814872,91399.0,91386.0,0.01094259]
[1763648658538,0.01093972,91410.0,91376.0,0.01094379]
[1763648658539,0.01094163,91394.0,91376.0,0.01094379]
[1763648658755,0.01094163,91394.0,91374.0,0.01094403]
[1763648659004,0.22980549,91382.0,91361.0,0.0038]
[1763648659216,0.01094367,91377.0,91361.0,0.01474558]
[1763648659435,0.01094307,91382.0,91361.0,0.01474558]
[1763648659436,0.0038,91376.0,91373.0,0.01094415]
[1763648659652,0.0038,91383.0,91376.0,0.01094379]
[1763648659878,0.0038,91383.0,91375.0,0.01094391]
[1763648659879,0.01474187,91392.0,91378.0,0.01094355]
[1763648660133,0.00814872,91391.0,91379.0,0.01094343]
[1763648660299,0.00814872,91391.0,91384.0,0.01094283]
[1763648660514,0.00814872,91391.0,91386.0,0.01094259]
[1763648660693,0.00814872,91391.0,91379.0,0.22981194]
[1763648660900,0.00814872,91391.0,91379.0,0.01094343]
[1763648661094,0.01094235,91388.0,91367.0,0.01094487]
[1763648661305,0.00814872,91387.0,91379.0,0.21886654]
[1763648661500,0.00814872,91387.0,91378.0,0.01094355]
[1763648661501,0.00814872,91387.0,91382.0,0.01094307]
[1763648661704,0.00814872,91391.0,91384.0,0.01094283]
[1763648661919,0.00814872,91391.0,91381.0,0.22980486]
[1763648662125,0.00814872,91391.0,91382.0,0.01094307]
[1763648662336,0.01986872,91391.0,91382.0,0.01094307]
[1763648662545,0.01986872,91391.0,91383.0,0.01094295]
[1763648662752,0.01986872,91391.0,91377.0,0.22981515]
[1763648662753,0.01986872,91391.0,91361.0,0.00012577]
[1763648662982,0.35381071,91391.0,91379.0,0.22981089]
[1763648663196,0.55356108,91391.0,91379.0,0.22981089]
[1763648663412,0.55356108,91391.0,91374.0,0.01094403]
[1763648663413,0.01474211,91390.0,91374.0,0.01094403]
[1763648663628,0.2188482,91388.0,91375.0,0.22982116]
[1763648663840,0.00814872,91387.0,91377.0,0.01094367]
[1763648664055,0.00814872,91387.0,91378.0,0.01094355]
[1763648664291,0.00814872,91387.0,91377.0,0.01094367]
[1763648664480,0.00814872,91387.0,91378.0,0.01094355]
[1763648664682,0.00814872,91387.0,91370.0,0.21888854]
[1763648664683,0.01909119,91387.0,91370.0,0.21888854]
[1763648664903,0.00814872,91387.0,91375.0,0.01094391]
[1763648665127,0.23794257,91387.0,91375.0,0.01094391]
[1763648665346,0.21885291,91386.0,91375.0,0.01094391]
[1763648665551,0.00814872,91385.0,91375.0,0.01094391]
[1763648666286,0.00814872,91385.0,91374.0,0.2298231]
[1763648666583,0.00814872,91385.0,91374.0,0.01094403]
[1763648666584,0.22700378,91385.0,91374.0,0.01094403]
[1763648666742,0.21885506,91385.0,91374.0,0.01094403]
[1763648666949,0.00814872,91384.0,91374.0,0.01094403]
[1763648667147,0.00814872,91384.0,91371.0,0.01094439]
[1763648667352,0.01094379,91376.0,91364.0,0.03313183]
[1763648667539,0.00814872,91375.0,91372.0,0.22982699]
[1763648667741,0.01999998,91420.0,91377.0,0.01094367]
[1763648667742,0.00814872,91384.0,91377.0,0.01094367]
[1763648667936,0.00814872,91384.0,91379.0,0.01094343]
[1763648668231,0.3268,91390.0,91379.0,0.01094343]
[1763648668232,0.0038,91386.0,91379.0,0.01094343]
[1763648668456,0.02307,91413.0,91390.0,0.01094211]
[1763648668553,0.0109402,91406.0,91390.0,0.01094211]
[1763648668776,0.00814872,91405.0,91393.0,0.01094175]
[1763648669002,0.00814872,91405.0,91394.0,0.01094163]
[1763648669198,0.21881865,91400.0,91388.0,0.01094235]
[1763648669405,0.00814872,91399.0,91388.0,0.02933183]
[1763648669615,0.22696954,91399.0,91388.0,0.25924686]
[1763648669827,0.21882082,91399.0,91388.0,0.04039995]
[1763648670147,0.01094163,91394.0,91388.0,0.00012577]
[1763648670356,0.21884271,91392.0,91388.0,0.00012577]
[1763648670510,0.21884336,91390.0,91388.0,0.00012577]
[1763648670697,0.00814872,91389.0,91388.0,0.00012577]
[1763648671473,0.05911872,91389.0,91388.0,0.00012577]
[1763648671677,0.03580872,91389.0,91388.0,0.00012577]
[1763648671879,0.05911872,91389.0,91388.0,0.00012577]
[1763648672234,0.03580872,91389.0,91388.0,0.00012577]
[1763648672441,0.01146,91399.0,91388.0,0.00012577]
[1763648672645,0.01094139,91396.0,91388.0,0.00012577]
[1763648672886,0.21883835,91392.0,91388.0,0.00012577]
[1763648673103,0.01909071,91391.0,91388.0,0.00012577]
[1763648673306,0.21884232,91390.0,91388.0,0.00012577]
[1763648673543,0.22977689,91393.0,91388.0,0.00012577]
[1763648673544,0.00814872,91389.0,91388.0,0.00012577]
[1763648673715,0.22698625,91392.0,91388.0,0.00012577]
[1763648673917,0.00814872,91391.0,91388.0,0.00012577]
[1763648674326,0.2188343,91394.0,91388.0,0.00012577]
[1763648674501,0.00814872,91393.0,91389.0,0.01094223]
[1763648674685,0.00814872,91396.0,91388.0,0.00012577]
[1763648674873,0.21883743,91393.0,91388.0,0.00012577]
[1763648675071,0.21883998,91391.0,91388.0,0.00012577]
[1763648675310,0.00814872,91390.0,91388.0,0.00012577]
[1763648675510,0.21884471,91389.0,91388.0,0.00012577]
[1763648676235,0.25745471,91389.0,91388.0,0.00012577]
[1763648676438,0.23431471,91389.0,91388.0,0.00012577]
[1763648676998,0.21884471,91389.0,91388.0,0.00012577]
[1763648677425,0.0038,91397.0,91388.0,0.00012577]
[1763648677608,0.01094151,91395.0,91388.0,0.00012577]
[1763648677963,0.21884242,91390.0,91388.0,0.00012577]
[1763648678110,0.22699343,91389.0,91388.0,0.00012577]
[1763648678457,0.21884471,91389.0,91388.0,0.00012577]
[1763648679012,0.01094163,91394.0,91388.0,0.00012577]
[1763648679213,0.00814872,91393.0,91388.0,0.00012577]
[1763648679582,0.00376,91392.0,91388.0,0.00012577]
[1763648679787,0.01146,91399.0,91388.0,0.01106812]
[1763648679788,0.00814872,91397.0,91388.0,0.01106812]
[1763648679934,0.00376,91395.0,91389.0,0.2188446]
[1763648680119,0.00376,91395.0,91389.0,0.01094223]
[1763648680320,0.00376,91395.0,91388.0,0.01106812]
[1763648680575,0.00376,91395.0,91389.0,0.14657992]
[1763648681138,0.01190872,91395.0,91389.0,0.14657992]
[1763648681743,0.01190872,91395.0,91391.0,0.21883992]
[1763648681946,0.00814872,91395.0,91391.0,0.22977983]
[1763648682153,0.00814872,91395.0,91389.0,0.17591175]
[1763648682154,0.21881886,91400.0,91389.0,0.40569855]
[1763648682360,0.00814872,91399.0,91389.0,0.17591175]
[1763648682578,0.00814872,91399.0,91379.0,0.00376]
[1763648682579,0.01094211,91390.0,91379.0,0.00376]
[1763648682825,0.21884295,91390.0,91379.0,0.01106923]
[1763648683026,0.00814872,91389.0,91385.0,0.01094271]
[1763648683242,0.21883297,91394.0,91382.0,0.22980431]
[1763648683465,0.22698477,91393.0,91383.0,0.0218859]
[1763648683695,0.00814872,91392.0,91383.0,0.0218859]
[1763648683925,0.00814872,91392.0,91379.0,0.0001258]
[1763648683926,0.21885727,91384.0,91379.0,0.0001258]
[1763648684367,0.01094247,91387.0,91379.0,0.0001258]
[1763648684368,0.22980155,91385.0,91379.0,0.0001258]
[1763648684581,0.21886265,91382.0,91379.0,0.0001258]
[1763648684796,0.21885669,91384.0,91379.0,0.0001258]
[1763648685092,0.21885933,91383.0,91379.0,0.0001258]
[1763648685303,0.00376,91403.0,91383.0,0.01094295]
[1763648685508,0.01094091,91400.0,91384.0,0.01094283]
[1763648685705,0.01094091,91400.0,91383.0,0.229802]
[1763648685706,0.01094151,91395.0,91379.0,0.0001258]
[1763648685854,0.2188461,91389.0,91379.0,0.02201266]
[1763648686075,0.00814872,91388.0,91380.0,0.01094331]
[1763648686229,0.21884132,91391.0,91381.0,0.03282957]
[1763648686230,0.00814872,91390.0,91381.0,0.03282957]
[1763648686430,0.00814872,91390.0,91383.0,0.01094295]
[1763648686646,0.22698356,91394.0,91383.0,0.01094295]
[1763648686890,0.00814872,91393.0,91383.0,0.0218859]
[1763648687093,0.00814872,91393.0,91383.0,0.03282885]
[1763648687339,0.22698434,91393.0,91383.0,0.03282885]
[1763648687511,0.21883562,91393.0,91383.0,0.0218859]
[1763648687715,0.00814872,91392.0,91383.0,0.0218859]
[1763648688065,0.01094223,91389.0,91383.0,0.0218859]
[1763648688273,0.21884973,91387.0,91379.0,0.0001258]
[1763648688490,0.00023389,91429.0,91388.0,0.01094235]
[1763648688737,0.01093852,91420.0,91404.0,0.01094044]
[1763648688935,0.01093852,91420.0,91400.0,0.01094091]
[1763648688936,0.00814872,91419.0,91400.0,0.05874734]
[1763648689136,0.03128872,91419.0,91399.0,0.01094103]
[1763648689370,0.00814872,91419.0,91406.0,0.0109402]
[1763648689561,0.21877584,91418.0,91407.0,0.22974161]
[1763648689892,0.00814872,91417.0,91407.0,0.01094008]
[1763648690218,0.00814872,91417.0,91406.0,0.22974389]
[1763648690219,0.00814872,91417.0,91408.0,0.01093996]
[1763648690419,0.00376,91420.0,91406.0,0.0109402]
[1763648690555,0.21877554,91418.0,91407.0,0.2297414]
[1763648690752,0.00814872,91417.0,91407.0,0.0001258]
[1763648690956,0.24572922,91408.0,91407.0,0.0001258]
[1763648691164,0.24948922,91408.0,91407.0,0.0001258]
[1763648691372,0.59562922,91408.0,91407.0,0.0001258]
[1763648691577,0.03069,91408.0,91407.0,0.0001258]
[1763648691778,0.00814872,91414.0,91407.0,0.0001258]
[1763648692005,0.01093804,91424.0,91407.0,0.01106588]
[1763648692006,0.21877914,91417.0,91407.0,0.01106588]
[1763648692158,0.00814872,91416.0,91408.0,0.01093996]
[1763648692360,0.01093804,91424.0,91407.0,0.02198402]
[1763648692361,0.00376,91420.0,91407.0,0.02198402]
[1763648692563,0.22692185,91419.0,91408.0,0.21879922]
[1763648692770,0.21878247,91415.0,91407.0,0.01104394]
[1763648692971,0.01146,91408.0,91407.0,0.01104394]
[1763648693176,0.00814872,91414.0,91407.0,0.01104394]
[1763648694209,0.00814872,91415.0,91407.0,0.01104394]
[1763648694413,0.00376,91420.0,91408.0,0.22973901]
[1763648694584,0.00376,91420.0,91407.0,0.01104394]
[1763648694585,0.21878345,91415.0,91407.0,0.01104394]
[1763648694944,0.00814872,91414.0,91407.0,0.02198402]
[1763648695727,0.00814872,91417.0,91407.0,0.01104394]
[1763648695932,0.21878988,91412.0,91407.0,0.01104394]
[1763648696133,0.00814872,91411.0,91407.0,0.01104394]
[1763648696375,0.23025922,91408.0,91407.0,0.01104394]
[1763648696800,0.01146,91408.0,91407.0,0.01104394]
[1763648697114,0.23025922,91408.0,91407.0,0.01104394]
[1763648698527,0.21879063,91412.0,91407.0,0.01104394]
[1763648698528,0.32323389,91429.0,91407.0,0.01104394]
[1763648698780,0.00814872,91428.0,91407.0,0.01104394]
[1763648698996,0.01093816,91423.0,91407.0,0.01104394]
[1763648699101,0.00814872,91422.0,91409.0,0.01093984]
[1763648699303,0.00814872,91422.0,91410.0,0.01093972]
[1763648699304,0.21877063,91420.0,91410.0,0.01093972]
[1763648699587,0.00814872,91419.0,91409.0,0.01093984]
[1763648699753,0.22691631,91422.0,91408.0,0.01093996]
[1763648699919,0.01093864,91419.0,91407.0,0.01104394]
[1763648700112,0.01146,91408.0,91407.0,0.01104394]
[1763648700323,0.02896367,91471.0,91407.0,0.06979128]
[1763648700531,0.00814872,91470.0,91467.0,0.0109329]
[1763648700777,0.0002,91490.0,91467.0,0.01091814]
[1763648700977,0.0002,91490.0,91469.0,0.05896823]
[1763648700978,0.01093051,91487.0,91469.0,0.05896823]
[1763648701325,0.0002,91490.0,91467.0,0.01091814]
[1763648701326,0.01146,91470.0,91467.0,0.01091814]
[1763648701544,0.02314,91489.0,91469.0,0.01093266]
[1763648701756,0.02314,91489.0,91467.0,0.01091814]
[1763648701757,0.01093147,91479.0,91467.0,0.01091814]
[1763648701948,0.01093075,91485.0,91467.0,0.02185104]
[1763648702156,0.21863973,91475.0,91467.0,0.01091814]
[1763648702356,0.0282,91468.0,91467.0,0.01091814]
[1763648702563,0.24170428,91474.0,91467.0,0.01091814]
[1763648702761,0.00814872,91473.0,91467.0,0.01091814]
[1763648702886,0.21864614,91472.0,91467.0,0.01091814]
[1763648703094,0.01093254,91470.0,91467.0,0.01091814]
[1763648703287,0.00814872,91469.0,91467.0,0.01091814]
[1763648703531,0.22680367,91469.0,91467.0,0.01091814]
[1763648703729,0.21865495,91469.0,91467.0,0.01091814]
[1763648703996,0.21865495,91469.0,91449.0,0.21869978]
[1763648703997,0.01093577,91443.0,91429.0,0.07861352]
[1763648704200,0.01093577,91443.0,91425.0,0.01093792]
[1763648704201,0.22966138,91439.0,91425.0,0.01093792]
[1763648704406,0.00814872,91438.0,91424.0,0.01093804]
[1763648704610,0.21871335,91444.0,91423.0,0.22252167]
[1763648704611,0.01093661,91436.0,91423.0,0.00376]
[1763648704817,0.01093708,91432.0,91423.0,0.00376]
[1763648705022,0.01093708,91432.0,91415.0,0.01093912]
[1763648705023,0.01213,91424.0,91415.0,0.21878011]
[1763648705221,0.01093756,91428.0,91416.0,0.021878]
[1763648705222,0.00814872,91428.0,91416.0,0.021878]
[1763648705420,0.00814872,91428.0,91415.0,0.00376]
[1763648705421,0.00041939,91432.0,91421.0,0.0109384]
[1763648705621,0.00041939,91432.0,91415.0,0.01469912]
[1763648705855,0.0109378,91426.0,91415.0,0.00376]
[1763648706004,0.0109378,91426.0,91414.0,0.01093924]
[1763648706005,0.01093804,91424.0,91414.0,0.01093924]
[1763648706210,0.01093816,91423.0,91413.0,0.02187872]
[1763648706389,0.02361,91439.0,91413.0,0.02187872]
[1763648706588,0.01093756,91428.0,91416.0,0.010939]
[1763648706792,0.0190864,91427.0,91416.0,0.010939]
[1763648707030,0.00814872,91427.0,91422.0,0.01093828]
[1763648707196,0.00814872,91427.0,91419.0,0.22971023]
[1763648707396,0.00856811,91432.0,91422.0,0.01093828]
[1763648707608,0.00856811,91432.0,91423.0,0.01093816]
[1763648707818,0.00041939,91432.0,91430.0,0.21874447]
[1763648708235,0.00041939,91432.0,91430.0,0.21874658]
[1763648708568,0.00041939,91432.0,91429.0,0.01093744]
[1763648708696,0.00041939,91432.0,91430.0,0.21874497]
[1763648710121,0.00041939,91432.0,91430.0,0.21874544]
[1763648710313,0.00041939,91432.0,91424.0,0.33393804]
[1763648710508,0.00041939,91432.0,91424.0,0.21876013]
[1763648710705,0.01950519,91432.0,91421.0,0.00376]
[1763648710945,0.22968708,91429.0,91418.0,0.01093876]
[1763648711105,0.22968708,91429.0,91417.0,0.21877692]
[1763648711106,0.0109378,91426.0,91395.0,0.05896823]
[1763648711327,0.01094175,91393.0,91380.0,0.05896823]
[1763648711556,0.01094175,91393.0,91373.0,0.01094415]
[1763648711557,0.01094211,91390.0,91374.0,0.01470403]
[1763648711754,0.01094247,91387.0,91375.0,0.22982132]
[1763648711980,0.01094247,91387.0,91360.0,0.76497396]
[1763648711981,0.01094391,91375.0,91360.0,0.0109457]
[1763648712175,0.01213,91389.0,91349.0,0.01094702]
[1763648712176,0.01094463,91369.0,91349.0,0.01094702]
[1763648712384,0.01094594,91358.0,91350.0,0.00376]
[1763648712592,0.01094487,91367.0,91351.0,0.01094678]
[1763648712791,0.01213,91374.0,91350.0,0.00376]
[1763648712792,0.23101185,91374.0,91358.0,0.01094594]
[1763648713014,0.01094427,91372.0,91357.0,0.01094606]
[1763648713202,0.01094439,91371.0,91360.0,0.0109457]
[1763648713403,0.01094451,91370.0,91360.0,0.0109457]
[1763648713707,0.23101123,91374.0,91350.0,0.00376]
[1763648713708,0.01213,91374.0,91365.0,0.01094511]
[1763648713909,0.01213,91374.0,91363.0,0.01094534]
[1763648714153,0.01213,91374.0,91360.0,0.22985914]
[1763648714154,0.01213,91374.0,91368.0,0.01094475]
[1763648714509,0.01213,91374.0,91361.0,0.01094558]
[1763648714510,0.01213,91401.0,91369.0,0.02564926]
[1763648714652,0.01213,91401.0,91380.0,0.01094331]
[1763648714852,0.01213,91401.0,91395.0,0.01094151]
[1763648715052,0.02361,91412.0,91401.0,0.01094079]
[1763648715231,0.01589,91413.0,91401.0,0.01094079]
[1763648715437,0.01589,91413.0,91390.0,0.93578939]
[1763648715438,0.01094008,91407.0,91390.0,0.93578939]
[1763648715635,0.01093972,91410.0,91392.0,0.01094187]
[1763648715858,0.01093972,91410.0,91395.0,0.01094151]
[1763648716062,0.22973543,91410.0,91398.0,0.01094115]
[1763648716376,0.01093948,91412.0,91401.0,0.01094079]
[1763648716609,0.0109396,91411.0,91400.0,0.01094091]
[1763648716800,0.01589,91413.0,91403.0,0.01094055]
[1763648717004,0.01589,91413.0,91405.0,0.01094032]
[1763648717216,0.01589,91413.0,91400.0,0.01094091]
[1763648717217,0.21879204,91411.0,91396.0,0.01094139]
[1763648717505,0.21879204,91411.0,91400.0,0.01094091]
[1763648717506,0.01093972,91410.0,91400.0,0.01094091]
[1763648717660,0.01094032,91405.0,91374.0,0.01094403]
[1763648717887,0.01589,91413.0,91394.0,0.01094163]
[1763648718084,0.01589,91413.0,91392.0,0.0001258]
[1763648718085,0.01094032,91405.0,91392.0,0.0001258]
[1763648718282,0.21881496,91402.0,91392.0,0.0001258]
[1763648718489,0.01213,91393.0,91392.0,0.0001258]
[1763648719090,0.05181,91393.0,91392.0,0.0001258]
[1763648721053,0.37481,91393.0,91392.0,0.0001258]
[1763648723929,0.37481,91393.0,91342.0,0.07861352]
[1763648723930,0.22987888,91353.0,91345.0,0.03915001]
[1763648724129,0.22989266,91348.0,91345.0,0.00012584]
[1763648724280,0.21894454,91348.0,91345.0,0.00012584]
[1763648724478,0.21894754,91347.0,91345.0,0.00012584]
[1763648724702,0.21893665,91351.0,91345.0,0.00012584]
[1763648724904,0.2189461,91347.0,91345.0,0.00012584]
[1763648725323,0.24200682,91354.0,91345.0,0.00012584]
[1763648725543,0.01213,91359.0,91345.0,0.00012584]
[1763648725710,0.21894544,91347.0,91345.0,0.00012584]
[1763648725924,0.0109457,91360.0,91345.0,0.00012584]
[1763648726135,0.22988596,91350.0,91345.0,0.00012584]
[1763648726361,0.0109469,91350.0,91345.0,0.00012584]
[1763648726580,0.22988414,91351.0,91345.0,0.00012584]
[1763648726795,0.01094618,91356.0,91345.0,0.00012584]
[1763648726995,0.21892066,91358.0,91345.0,0.00012584]
[1763648727372,0.21892616,91355.0,91345.0,0.00012584]
[1763648727538,0.21894583,91347.0,91345.0,0.00012584]
[1763648729028,0.22988697,91350.0,91345.0,0.00012584]
[1763648729223,0.21894007,91350.0,91345.0,0.00012584]
[1763648729433,0.01607,91346.0,91345.0,0.00012584]
[1763648729890,0.03968,91346.0,91345.0,0.00012584]
[1763648730428,0.01094702,91349.0,91345.0,0.00012584]
[1763648731087,0.01094714,91348.0,91345.0,0.00012584]
[1763648731315,0.00376,91351.0,91347.0,0.22989241]
[1763648731535,0.00376,91351.0,91345.0,0.00012584]
[1763648731749,0.23501773,91346.0,91345.0,0.00012584]
[1763648732148,0.00376,91351.0,91345.0,0.00012584]
[1763648732602,0.22986773,91357.0,91346.0,0.21894743]
[1763648732766,0.00376,91353.0,91347.0,0.01094726]
[1763648732965,0.00376,91353.0,91350.0,0.0109469]
[1763648733171,0.00376,91353.0,91347.0,0.22989075]
[1763648733372,0.0109463,91355.0,91345.0,0.00012584]
[1763648733575,0.00814872,91355.0,91345.0,0.00012584]
[1763648734566,0.00814872,91355.0,91349.0,0.01094702]
[1763648734772,0.00814872,91358.0,91345.0,0.01107334]
[1763648734997,0.00814872,91358.0,91323.0,0.05896823]
[1763648734998,0.21898369,91331.0,91326.0,0.03915001]
[1763648735215,0.24977369,91331.0,91330.0,0.00348363]
[1763648735430,0.27416369,91331.0,91330.0,0.00348363]
[1763648735642,0.21897858,91334.0,91330.0,0.00348363]
[1763648735643,0.00376,91334.0,91330.0,0.00348363]
[1763648735874,0.21898369,91331.0,91330.0,0.00348363]
[1763648736095,0.23465369,91331.0,91330.0,0.00348363]
[1763648736313,0.21898369,91331.0,91330.0,0.00348363]
[1763648736829,0.01136,91345.0,91330.0,0.22246932]
[1763648737029,0.02736906,91344.0,91331.0,0.02189836]
[1763648737237,0.21895492,91343.0,91331.0,0.22993207]
[1763648737446,0.02736966,91342.0,91339.0,0.01094822]
[1763648737882,0.02736966,91342.0,91337.0,0.01094846]
[1763648738116,0.03872876,91345.0,91340.0,0.0109481]
[1763648738325,0.21895554,91343.0,91332.0,0.01094906]
[1763648738547,0.21895554,91343.0,91316.0,0.03915001]
[1763648738548,0.00376,91351.0,91342.0,0.01094786]
[1763648738759,0.01094618,91356.0,91343.0,0.21895413]
[1763648738760,0.02736726,91350.0,91343.0,0.21895413]
[1763648738993,0.02736577,91355.0,91347.0,0.01094726]
[1763648739204,0.00376,91364.0,91355.0,0.22987177]
[1763648739426,0.02730847,91363.0,91361.0,0.21891079]
[1763648739637,0.02730847,91363.0,91352.0,0.01094666]
[1763648739638,0.23022507,91381.0,91366.0,0.22984479]
[1763648739853,0.23022507,91381.0,91351.0,0.323]
[1763648739854,0.2298191,91377.0,91362.0,0.01094546]
[1763648740070,0.23794287,91376.0,91363.0,0.01094534]
[1763648740283,0.01470331,91380.0,91363.0,0.01094534]
[1763648740284,0.00376,91380.0,91363.0,0.01094534]
[1763648740500,0.02215049,91379.0,91371.0,0.22983096]
[1763648740723,0.02194052,91379.0,91373.0,0.01094415]
[1763648740935,0.02307175,91393.0,91375.0,0.01094391]
[1763648741149,0.00376,91387.0,91379.0,0.01094343]
[1763648741365,0.02735648,91386.0,91371.0,0.01094439]
[1763648741583,0.21887228,91378.0,91366.0,0.01094499]
[1763648741880,0.21887228,91378.0,91364.0,0.25805363]
[1763648741881,0.24170614,91377.0,91364.0,0.03915001]
[1763648742119,0.01094343,91379.0,91363.0,0.00012592]
[1763648742120,0.21888783,91371.0,91363.0,0.00012592]
[1763648742317,0.01094355,91378.0,91363.0,0.00012592]
[1763648742318,0.02736127,91370.0,91363.0,0.00012592]
[1763648742530,0.02736037,91373.0,91363.0,0.00012592]
[1763648742735,0.02736037,91373.0,91365.0,0.01094511]
[1763648742945,0.02736037,91373.0,91363.0,0.02949942]
[1763648742946,0.01094439,91371.0,91363.0,0.02949942]
[1763648743166,0.01136,91364.0,91363.0,0.02949942]
[1763648743387,0.02703,91364.0,91363.0,0.00012592]
[1763648743604,0.07878307,91364.0,91363.0,0.00012592]
[1763648744257,0.07817661,91364.0,91363.0,0.00012592]
[1763648745346,0.04506344,91364.0,91363.0,0.00012592]
[1763648745476,0.0529429,91364.0,91363.0,0.00012592]
[1763648745904,0.06793343,91364.0,91363.0,0.00012592]
[1763648746313,0.07082433,91364.0,91363.0,0.00012592]
[1763648746505,0.07978307,91364.0,91363.0,0.00012592]
[1763648746711,0.07878307,91364.0,91363.0,0.00012592]
[1763648747118,0.07978307,91364.0,91363.0,0.00012592]
[1763648747653,0.09988477,91364.0,91363.0,0.00012592]
[1763648747861,0.09123923,91364.0,91363.0,0.00012592]
[1763648748082,0.09988477,91364.0,91363.0,0.00012592]
[1763648748682,0.09003878,91364.0,91363.0,0.00012592]
[1763648749058,0.04986385,91364.0,91363.0,0.00012592]
[1763648749262,0.06999905,91364.0,91363.0,0.00012592]
[1763648749465,0.10367827,91364.0,91363.0,0.00012592]
[1763648749953,0.10036995,91364.0,91363.0,0.00012592]
[1763648750388,0.01094582,91359.0,91350.0,0.0293735]
[1763648750593,0.24628565,91358.0,91350.0,0.00012595]
[1763648750814,0.001,91364.0,91359.0,0.22986041]
[1763648751014,0.001,91364.0,91359.0,0.02945901]
[1763648751227,0.001,91364.0,91360.0,0.02945901]
[1763648751426,0.001,91364.0,91362.0,0.02945901]
[1763648751833,0.001,91364.0,91361.0,0.02945901]
[1763648751834,0.21890939,91362.0,91361.0,0.02945901]
[1763648752036,0.01136,91358.0,91356.0,0.03915001]
[1763648752246,0.01136,91358.0,91351.0,0.05896823]
[1763648752247,0.01136,91358.0,91357.0,0.03915001]
[1763648752481,0.02647574,91361.0,91358.0,0.01094594]
[1763648752617,0.02131761,91369.0,91358.0,0.26901311]
[1763648752821,0.02131761,91369.0,91364.0,0.02947043]
[1763648753026,0.21889888,91367.0,91364.0,0.02947043]
[1763648753196,0.01094534,91363.0,91360.0,0.03915001]
[1763648753396,0.01567,91365.0,91337.0,0.01470846]
[1763648753397,0.2499743,91362.0,91357.0,0.03915001]
[1763648753668,0.01094475,91368.0,91357.0,0.03915001]
[1763648753669,0.01136,91371.0,91357.0,0.03915001]
[1763648753783,0.01136,91371.0,91364.0,0.02947924]
[1763648753784,0.01400129,91368.0,91364.0,0.02947924]
[1763648753987,0.01094355,91378.0,91361.0,0.22985624]
[1763648753988,0.01401139,91369.0,91365.0,0.02947924]
[1763648754192,0.01136,91381.0,91361.0,0.22985673]
[1763648754193,0.02735828,91380.0,91366.0,0.03915001]
[1763648754394,0.22981307,91379.0,91373.0,0.02947277]
[1763648754601,0.02735888,91378.0,91373.0,0.02947277]
[1763648754800,0.24623156,91378.0,91373.0,0.02947277]
[1763648755033,0.21887268,91378.0,91373.0,0.02947277]
[1763648755242,0.02735888,91378.0,91372.0,0.02947277]
[1763648755450,0.25717447,91378.0,91372.0,0.02947277]
[1763648755840,0.24623092,91378.0,91372.0,0.02947277]
[1763648756127,0.01094367,91377.0,91372.0,0.02947277]
[1763648756339,0.02435899,91376.0,91372.0,0.02947277]
[1763648756774,0.02435899,91376.0,91373.0,0.02947277]
[1763648757028,0.21887936,91375.0,91373.0,0.02947277]
[1763648757254,0.04174201,91374.0,91373.0,0.02947277]
[1763648757462,0.001,91378.0,91375.0,0.22982186]
[1763648757676,0.02443582,91378.0,91374.0,0.02947277]
[1763648758084,0.02443582,91378.0,91376.0,0.02947277]
[1763648758295,0.02443582,91378.0,91375.0,0.01094391]
[1763648758493,0.01703417,91378.0,91376.0,0.02945395]
[1763648758705,0.21887345,91377.0,91375.0,0.02945395]
[1763648758917,0.24223624,91376.0,91375.0,0.02945395]
[1763648759114,0.04106,91376.0,91375.0,0.02945395]
[1763648759321,0.01667,91376.0,91375.0,0.02945395]
[1763648759743,0.02654265,91376.0,91375.0,0.02945395]
[1763648759955,0.02735828,91380.0,91378.0,0.21887093]
[1763648760184,0.02735588,91388.0,91379.0,0.01094343]
[1763648760399,0.02735588,91388.0,91382.0,0.01094307]
[1763648760647,0.00376,91399.0,91391.0,0.01094199]
[1763648760816,0.02439,91417.0,91404.0,0.01094044]
[1763648761016,0.01136,91420.0,91409.0,0.01093984]
[1763648761216,0.02734661,91419.0,91410.0,0.01093972]
[1763648761551,0.01093768,91427.0,91410.0,0.01093972]
[1763648761552,0.01093661,91436.0,91417.0,0.01093888]
[1763648761760,0.01093661,91436.0,91413.0,0.01093936]
[1763648761761,0.01093756,91428.0,91414.0,0.24822948]
[1763648761959,0.02385373,91427.0,91414.0,0.02944632]
[1763648762174,0.22249561,91435.0,91422.0,0.21876489]
[1763648762374,0.22249561,91435.0,91418.0,0.01093876]
[1763648762375,0.01149,91447.0,91428.0,0.01093756]
[1763648762669,0.21873414,91436.0,91424.0,0.02944632]
[1763648762865,0.02734182,91435.0,91424.0,0.01093804]
[1763648763093,0.00023386,91437.0,91434.0,0.01093685]
[1763648763274,0.00023386,91437.0,91435.0,0.21873252]
[1763648763700,0.00023386,91437.0,91435.0,0.21873462]
[1763648763868,0.00023386,91437.0,91434.0,0.22967248]
[1763648764076,0.00023386,91437.0,91432.0,0.02944632]
[1763648764276,0.00023386,91437.0,91421.0,0.06990663]
[1763648764277,0.00065348,91437.0,91433.0,0.01093697]
[1763648764508,0.0279947,91437.0,91428.0,0.21875136]
[1763648764709,0.0279947,91437.0,91431.0,0.0109372]
[1763648764922,0.0279947,91437.0,91429.0,0.01093744]
[1763648765131,0.0279947,91437.0,91424.0,0.02944632]
[1763648765283,0.21874986,91429.0,91419.0,0.02944632]
[1763648765489,0.01093685,91434.0,91419.0,0.02944632]
[1763648765490,0.00065348,91437.0,91422.0,0.01093828]
[1763648765724,0.01158997,91437.0,91420.0,0.21876813]
[1763648765952,0.01158997,91437.0,91417.0,0.02944632]
[1763648765953,0.01093744,91429.0,91417.0,0.02944632]
[1763648766270,0.21875705,91426.0,91416.0,0.02944632]
[1763648766394,0.21878008,91416.0,91415.0,0.02944632]
[1763648766598,0.01149,91419.0,91408.0,0.00376]
[1763648766800,0.01093912,91415.0,91403.0,0.00376]
[1763648767041,0.21878412,91415.0,91403.0,0.01470055]
[1763648767237,0.02565623,91414.0,91403.0,0.00376]
[1763648767441,0.02565623,91414.0,91390.0,0.03915001]
[1763648767442,0.01094055,91403.0,91390.0,0.03915001]
[1763648767647,0.01093984,91409.0,91380.0,0.03915001]
[1763648767648,0.01149,91391.0,91380.0,0.03915001]
[1763648767892,0.01149,91391.0,91379.0,0.21886715]